bitfinex-derivatives/quotes_SOLF0:USTF0_20240911
["timestamp","ask_amount","ask_price","bid_price","bid_amount"]
[1726068059028,6.65511212,130.47,130.36,32.44]
[1726068059223,3.8329,130.46,130.36,32.44]
[1726068059422,6.65511212,130.47,130.36,32.44]
[1726068060015,3.8329,130.46,130.42,3.8339]
[1726068060222,6.65511212,130.47,130.36,32.44]
[1726068060431,3.8329,130.46,130.42,3.8337]
[1726068060629,3.8329,130.46,130.36,32.44]
[1726068061025,3.8333,130.45,130.36,32.44]
[1726068061322,6.65511212,130.47,130.36,32.44]
[1726068061526,3.8332,130.45,130.41,3.834]
[1726068062128,3.8329,130.46,130.42,3.8339]
[1726068062317,3.8329,130.46,130.36,32.44]
[1726068062523,10.48771212,130.47,130.36,32.44]
[1726068062719,2.7811,130.47,130.38,32.44]
[1726068062919,6.67954135,130.47,130.38,32.44]
[1726068063123,10.51214135,130.47,130.38,36.32194691]
[1726068063732,10.51214135,130.47,130.43,3.8335]
[1726068064825,3.8328,130.46,130.43,3.8335]
[1726068065031,3.8328,130.46,130.42,3.8337]
[1726068065230,3.8328,130.46,130.36,32.44]
[1726068065231,32.44,130.46,130.36,32.44]
[1726068065431,32.44,130.46,130.34,32.44]
[1726068065934,3.8344,130.41,130.34,32.44]
[1726068066135,3.76475747,130.4,130.31,32.44]
[1726068066333,32.44,130.44,130.31,32.44]
[1726068066632,1.4286,130.43,130.31,36.23544009]
[1726068067223,3.8347,130.4,130.31,36.23544009]
[1726068067424,3.75315667,130.39,130.31,36.23544009]
[1726068067630,1.4286,130.43,130.31,36.23544009]
[1726068069229,3.835,130.39,130.36,3.8355]
[1726068069430,3.91852271,130.39,130.36,3.8355]
[1726068069734,3.8351,130.38,130.28,40.1157]
[1726068069936,7.65847009,130.38,130.28,43.89878371]
[1726068070237,3.8355,130.37,130.28,36.22308371]
[1726068070533,3.82337009,130.38,130.28,36.22308371]
[1726068070733,3.8356,130.37,130.28,36.22308371]
[1726068070936,3.83623655,130.37,130.28,36.22308371]
[1726068071237,32.44,130.39,130.28,36.22308371]
[1726068071438,36.33533232,130.39,130.28,36.22308371]
[1726068071938,36.33533232,130.39,130.28,32.44]
[1726068073034,3.836,130.36,130.28,32.44]
[1726068073338,36.33533232,130.39,130.28,32.44]
[1726068073539,3.8357,130.37,130.28,32.44]
[1726068074431,3.8357,130.37,130.34,3.8363]
[1726068075038,3.8357,130.36,130.34,3.8363]
[1726068075239,36.33533232,130.39,130.34,3.8363]
[1726068075642,3.8356,130.37,130.34,3.8363]
[1726068076140,3.8352,130.38,130.35,3.8359]
[1726068076534,3.89533232,130.39,130.35,3.8359]
[1726068076835,2.6806,130.4,130.28,32.44]
[1726068077234,6.42570706,130.4,130.28,32.44]
[1726068077534,3.8354,130.37,130.34,3.8361]
[1726068077737,3.8354,130.37,130.28,32.44]
[1726068077939,3.8354,130.37,130.35,3.8359]
[1726068078134,3.8352,130.38,130.27,3.93255498]
[1726068078337,26.69570706,130.4,130.3,20.27]
[1726068079743,26.69570706,130.4,130.37,3.8353]
[1726068079744,10.26040706,130.4,130.37,3.8353]
[1726068080343,3.8342,130.41,130.34,20.27]
[1726068080645,1.4286,130.43,130.34,20.27]
[1726068080943,3.8341,130.42,130.38,3.8349]
[1726068081846,3.8341,130.42,130.39,3.8348]
[1726068082540,1.4286,130.43,130.34,20.27]
[1726068082737,24.4952,130.46,130.36,20.27]
[1726068083141,3.8337,130.43,130.4,3.8343]
[1726068083349,24.4952,130.46,130.4,3.8343]
[1726068083536,24.4952,130.46,130.36,20.27]
[1726068083737,4.2252,130.46,130.42,3.8338]
[1726068083942,20.27,130.48,130.38,20.27]
[1726068084141,3.8325,130.47,130.43,3.8334]
[1726068084344,20.27,130.48,130.43,3.8334]
[1726068084542,3.7587265,130.47,130.43,3.8334]
[1726068085050,20.27,130.48,130.43,3.8334]
[1726068085449,3.91446106,130.47,130.43,3.8334]
[1726068085748,20.27,130.48,130.38,20.27]
[1726068085945,24.13421173,130.48,130.38,20.27]
[1726068086141,3.8328,130.46,130.42,3.8337]
[1726068086343,24.13421173,130.48,130.38,20.27]
[1726068087052,20.27,130.46,130.36,20.27]
[1726068087252,3.8333,130.45,130.41,3.834]
[1726068087451,20.27,130.46,130.41,3.834]
[1726068087639,20.27,130.46,130.36,20.27]
[1726068087846,20.27,130.44,130.34,20.27]
[1726068088042,20.27,130.42,130.32,20.27]
[1726068088351,3.8348,130.4,130.36,3.8356]
[1726068088552,20.27,130.42,130.32,24.02440209]
[1726068088761,3.8342,130.41,130.32,24.02440209]
[1726068089357,3.8345,130.4,130.32,24.02440209]
[1726068089546,24.15437044,130.42,130.32,24.02440209]
[1726068089746,20.27,130.42,130.32,24.02440209]
[1726068089948,3.8351,130.38,130.32,20.27]
[1726068090148,3.8351,130.38,130.3,24.13672293]
[1726068090348,3.8351,130.38,130.3,20.27]
[1726068090548,3.8351,130.38,130.3,24.11293715]
[1726068091351,3.8351,130.38,130.3,20.27]
[1726068091755,3.8351,130.38,130.33,3.8364]
[1726068091954,3.8354,130.37,130.33,3.8364]
[1726068092753,3.8352,130.38,130.33,3.8364]
[1726068093452,3.8354,130.37,130.33,3.8364]
[1726068094550,3.8357,130.36,130.29,32.44]
[1726068095752,3.8357,130.36,130.32,3.8366]
[1726068096344,32.44,130.38,130.26,32.44]
[1726068096547,32.44,130.34,130.19,128.25060653]
[1726068096746,2.7378,130.33,130.22,32.44]
[1726068097054,2.7378,130.33,130.22,36.36104282]
[1726068097555,3.837,130.32,130.29,3.8376]
[1726068097763,2.7378,130.33,130.22,36.36104282]
[1726068097950,3.8374,130.3,130.22,36.36104282]
[1726068098147,4.0834,130.33,130.22,32.44]
[1726068098656,3.8375,130.3,130.26,3.8384]
[1726068098855,4.0834,130.33,130.22,32.44]
[1726068099159,3.837,130.32,130.25,32.44]
[1726068099455,4.0834,130.33,130.22,32.44]
[1726068099660,4.0834,130.33,130.22,36.35017274]
[1726068100153,3.8373,130.31,130.27,3.8381]
[1726068100861,4.0834,130.33,130.22,36.35017274]
[1726068101157,32.44,130.32,130.22,32.44]
[1726068101961,32.44,130.32,130.25,3.8387]
[1726068102258,32.44,130.32,130.2,32.44]
[1726068102465,32.44,130.32,130.25,3.8386]
[1726068102765,32.44,130.32,130.2,32.44]
[1726068102957,3.8385,130.27,130.2,32.44]
[1726068103154,32.44,130.32,130.2,32.44]
[1726068104154,3.8379,130.29,130.26,3.8386]
[1726068104360,4.0834,130.33,130.2,32.44]
[1726068104555,4.0834,130.33,130.22,32.44]
[1726068104760,3.8378,130.29,130.26,3.8384]
[1726068106061,3.8378,130.29,130.22,32.44]
[1726068106062,3.8381,130.28,130.25,3.8389]
[1726068106263,4.0834,130.33,130.2,32.44]
[1726068106467,32.44,130.3,130.2,32.44]
[1726068106766,32.44,130.3,130.23,3.8395]
[1726068106952,32.44,130.3,130.2,32.44]
[1726068107457,3.8388,130.26,130.2,32.44]
[1726068107651,32.44,130.3,130.19,128.25060653]
[1726068107855,3.8388,130.26,130.23,3.8394]
[1726068108263,3.8386,130.26,130.19,128.25060653]
[1726068108563,3.90915373,130.27,130.18,32.44]
[1726068108762,32.44,130.3,130.18,32.44]
[1726068108963,3.839,130.25,130.22,3.8396]
[1726068109559,3.8388,130.26,130.18,32.44]
[1726068109755,3.92174994,130.26,130.18,32.44]
[1726068110064,32.44,130.28,130.18,32.44]
[1726068110555,3.9818,130.27,130.16,32.44]
[1726068110753,3.8397,130.23,130.2,3.8402]
[1726068111061,32.44,130.26,130.16,32.44]
[1726068111562,32.44,130.26,130.13,32.44]
[1726068111759,40.17803151,130.27,130.13,32.44]
[1726068111760,3.8405,130.2,130.16,3.8413]
[1726068111963,3.8405,130.2,130.13,32.44]
[1726068112353,3.8405,130.2,130.17,3.8411]
[1726068112564,3.8402,130.21,130.12,128.31959219]
[1726068113665,3.8402,130.21,130.18,3.8409]
[1726068114064,32.44,130.24,130.18,3.8409]
[1726068114065,3.8404,130.2,130.18,3.8409]
[1726068114762,3.8404,130.2,130.17,3.8411]
[1726068114962,20.29,130.23,130.17,3.8411]
[1726068115362,20.29,130.23,130.16,3.8415]
[1726068115761,3.8407,130.19,130.16,3.8415]
[1726068115966,3.78246503,130.2,130.17,3.8413]
[1726068116269,3.8405,130.2,130.17,3.8413]
[1726068116470,20.29,130.23,130.13,20.29]
[1726068116771,20.29,130.23,130.18,3.8407]
[1726068117068,3.8399,130.22,130.18,3.8407]
[1726068117264,3.8399,130.22,130.13,20.29]
[1726068117472,20.29,130.25,130.15,20.29]
[1726068117763,20.29,130.25,130.15,24.16275242]
[1726068117971,20.29,130.25,130.2,3.8402]
[1726068118470,3.8397,130.23,130.2,3.8402]
[1726068119169,3.84,130.22,130.19,3.8405]
[1726068119771,20.29,130.23,130.14,20.29]
[1726068119973,20.29,130.23,130.12,20.29]
[1726068120268,3.8405,130.2,130.12,20.29]
[1726068120766,3.8409,130.19,130.12,20.29]
[1726068120965,20.29,130.23,130.12,20.29]
[1726068121360,20.29,130.24,130.14,20.29]
[1726068121764,20.29,130.22,130.14,20.29]
[1726068122169,3.8405,130.2,130.14,20.29]
[1726068122672,20.29,130.22,130.18,3.8408]
[1726068123069,20.29,130.22,130.14,20.29]
[1726068123270,20.29,130.22,130.12,20.29]
[1726068123473,20.29,130.2,130.1,20.29]
[1726068123773,1.3221,130.19,130.1,20.29]
[1726068124168,1.3221,130.19,130.12,20.29]
[1726068124568,5.1629,130.19,130.16,3.8415]
[1726068124975,3.8413,130.17,130.14,3.8419]
[1726068125175,1.3221,130.19,130.08,132.20682407]
[1726068125176,20.29,130.18,130.08,132.20682407]
[1726068125372,20.29,130.16,130.0,20.29]
[1726068125574,20.29,130.16,130.07,20.29]
[1726068125775,3.8423,130.14,130.07,20.29]
[1726068125975,20.29,130.16,130.07,20.29]
[1726068126374,20.29,130.16,130.06,3.83116883]
[1726068126567,1.356,130.15,130.05,20.29]
[1726068126770,3.8428,130.12,130.05,20.29]
[1726068126975,20.29,130.14,129.99,3.83232152]
[1726068127174,1.3168,130.13,130.04,20.29]
[1726068128181,5.08341799,130.13,130.04,20.29]
[1726068129079,3.8429,130.12,130.09,3.8436]
[1726068129377,5.08341799,130.13,130.04,20.29]
[1726068129582,1.3168,130.13,130.04,20.29]
[1726068129783,5.06699221,130.13,130.06,20.29]
[1726068130277,5.1595,130.13,130.06,20.29]
[1726068130580,1.356,130.15,130.08,20.29]
[1726068130780,1.356,130.15,130.13,3.8424]
[1726068130976,1.356,130.15,130.08,20.29]
[1726068131177,1.356,130.15,130.12,3.8426]
[1726068131578,1.356,130.15,130.08,20.29]
[1726068131978,5.1979,130.15,130.08,20.29]
[1726068132178,1.356,130.15,130.11,3.8429]
[1726068132383,3.8422,130.14,130.11,3.8429]
[1726068132680,3.8422,130.14,130.06,20.29]
[1726068132980,3.8426,130.13,130.06,20.29]
[1726068133284,3.77776923,130.13,130.1,3.8432]
[1726068133480,3.8424,130.14,130.1,3.8432]
[1726068133786,3.8424,130.14,130.06,20.29]
[1726068134486,5.198,130.15,130.06,20.29]
[1726068134683,1.356,130.15,130.08,20.29]
[1726068135288,5.1979,130.15,130.12,3.8426]
[1726068135885,3.8422,130.14,130.11,3.843]
[1726068136791,5.198,130.15,130.12,3.8427]
[1726068137383,1.356,130.15,130.12,3.8427]
[1726068137782,20.29,130.16,130.08,20.29]
[1726068137988,21.6216,130.18,130.08,20.29]
[1726068138186,20.29,130.18,130.08,20.29]
[1726068138382,1.4079,130.17,130.08,20.29]
[1726068138591,20.29,130.13,130.04,20.29]
[1726068138781,1.3907,130.12,130.04,20.29]
[1726068139084,1.3907,130.12,129.99,7.6928]
[1726068139296,1.3907,130.12,130.01,20.29]
[1726068139590,1.3907,130.12,130.04,20.29]
[1726068140092,1.3907,130.12,130.1,3.8433]
[1726068140590,5.2335,130.12,130.1,3.8433]
[1726068141190,20.29,130.13,130.12,3.8427]
[1726068141492,1.3183,130.19,130.11,20.29]
[1726068141690,3.8401,130.21,130.13,20.29]
[1726068142194,6.6781,130.23,130.13,20.29]
[1726068142390,6.6781,130.23,130.15,20.29]
[1726068142684,2.8386,130.23,130.15,20.29]
[1726068142892,3.839,130.25,130.21,3.84]
[1726068144088,20.29,130.25,130.12,3.92903821]
[1726068144290,20.29,130.25,130.14,20.29]
[1726068144687,20.29,130.25,130.18,3.8407]
[1726068145294,20.29,130.25,130.19,3.8406]
[1726068145295,3.8395,130.23,130.19,3.8406]
[1726068145490,20.29,130.25,130.14,20.29]
[1726068145697,20.29,130.23,130.14,20.29]
[1726068146192,23.095,130.26,130.16,20.29]
[1726068146384,23.095,130.26,130.03,34.5662]
[1726068146591,23.095,130.26,130.16,20.29]
[1726068146789,23.095,130.26,130.16,24.08388491]
[1726068146987,3.8393,130.24,130.16,20.29]
[1726068147190,23.095,130.26,130.16,20.29]
[1726068147494,23.095,130.26,130.15,20.29]
[1726068147793,3.8396,130.23,130.19,3.8405]
[1726068147993,23.095,130.26,130.19,3.8405]
[1726068148190,32.46,130.25,130.19,3.8405]
[1726068148793,3.8397,130.23,130.19,3.8405]
[1726068149498,32.46,130.25,130.14,3.92709826]
[1726068149802,2.805,130.26,130.18,32.46]
[1726068150200,2.805,130.26,130.23,3.8393]
[1726068151117,2.805,130.26,130.18,32.46]
[1726068151611,2.805,130.26,130.15,32.46]
[1726068151801,32.46,130.25,130.13,32.46]
[1726068152002,3.84,130.22,130.19,3.8405]
[1726068152302,33.7761,130.25,130.13,32.46]
[1726068152497,33.7761,130.25,130.13,36.32704047]
[1726068153107,3.8393,130.24,130.13,36.32704047]
[1726068153405,33.7761,130.25,130.13,36.32704047]
[1726068153595,33.7761,130.25,130.13,3.86704047]
[1726068153910,2.805,130.26,130.19,32.46]
[1726068154097,6.6436,130.26,130.19,32.46]
[1726068154298,2.805,130.26,130.17,32.46]
[1726068154802,2.805,130.26,130.17,36.33924792]
[1726068155804,2.805,130.26,130.17,32.46]
[1726068156009,3.8397,130.23,130.2,3.8401]
[1726068156205,2.805,130.26,130.16,3.88808273]
[1726068156506,3.84,130.22,130.19,3.8407]
[1726068156805,1.3652,130.25,130.17,3.75402415]
[1726068157010,1.3652,130.25,130.15,32.46]
[1726068157510,3.839,130.25,130.15,32.46]
[1726068157697,3.839,130.25,130.17,32.46]
[1726068158008,2.805,130.26,130.17,36.24274564]
[1726068158205,3.839,130.25,130.17,36.24274564]
[1726068159403,2.805,130.26,130.17,36.24274564]
[1726068159905,2.805,130.26,130.21,3.8399]
[1726068160910,2.805,130.26,130.2,3.8403]
[1726068161112,3.8396,130.23,130.2,3.8403]
[1726068161506,2.805,130.26,130.21,3.84]
[1726068161706,2.805,130.26,130.16,3.82095199]
[1726068162114,3.8396,130.23,130.2,3.8402]
[1726068162310,2.805,130.26,130.16,3.82095199]
[1726068162814,3.8393,130.24,130.21,3.8399]
[1726068163703,2.805,130.26,130.16,3.82095199]
[1726068163908,32.46,130.29,130.18,32.46]
[1726068164211,32.46,130.31,130.26,3.8386]
[1726068164412,36.23640371,130.31,130.26,3.8386]
[1726068164619,36.23640371,130.31,130.2,32.46]
[1726068164909,3.8384,130.27,130.2,36.33548966]
[1726068165310,3.8387,130.26,130.2,32.46]
[1726068165511,32.46,130.29,130.18,36.27596128]
[1726068165709,32.46,130.29,130.18,32.46]
[1726068166110,36.23640371,130.31,130.2,32.46]
[1726068166920,36.23640371,130.31,130.2,36.28698379]
[1726068167111,222.6599,130.42,130.27,32.46]
[1726068167312,35.0817,130.39,130.29,32.46]
[1726068167815,2.6217,130.39,130.29,32.46]
[1726068168011,6.4566,130.39,130.34,3.836]
[1726068168212,6.4566,130.39,130.29,32.46]
[1726068168213,2.6217,130.39,130.29,32.46]
[1726068168421,35.0817,130.39,130.29,32.46]
[1726068168614,3.8355,130.37,130.32,3.8369]
[1726068168920,35.0817,130.39,130.29,32.46]
[1726068169721,3.8353,130.38,130.33,3.8363]
[1726068170111,3.8353,130.38,130.29,32.46]
[1726068170311,38.9165,130.39,130.29,32.46]
[1726068170711,38.9165,130.39,130.34,3.8361]
[1726068170921,36.22631116,130.42,130.27,3.88650441]
[1726068171214,3.76631116,130.42,130.31,32.46]
[1726068171418,3.76631116,130.42,130.37,3.8352]
[1726068171716,3.76631116,130.42,130.34,3.89716634]
[1726068171921,3.76631116,130.42,130.37,3.8351]
[1726068172123,3.76631116,130.42,130.31,32.46]
[1726068172420,3.8345,130.4,130.36,3.8357]
[1726068173516,3.8348,130.39,130.31,32.46]
[1726068173727,3.8348,130.39,130.35,3.8358]
[1726068173917,3.8348,130.39,130.31,32.46]
[1726068174318,36.22631116,130.42,130.36,3.8356]
[1726068174319,3.8346,130.4,130.36,3.8356]
[1726068174718,36.22631116,130.42,130.31,32.46]
[1726068174919,3.8346,130.4,130.31,32.46]
[1726068175118,36.22631116,130.42,130.31,32.46]
[1726068175320,3.835,130.39,130.35,3.8357]
[1726068175721,3.835,130.39,130.31,32.46]
[1726068176319,3.8345,130.4,130.31,32.46]
[1726068176928,36.22631116,130.42,130.31,32.46]
[1726068177125,1.4206,130.39,130.29,32.46]
[1726068177427,3.8352,130.38,130.29,32.46]
[1726068177821,1.4206,130.39,130.29,32.46]
[1726068178021,3.8353,130.38,130.29,32.46]
[1726068178226,1.4206,130.39,130.29,32.46]
[1726068178423,1.4206,130.39,130.33,3.8363]
[1726068178728,3.836,130.36,130.29,32.46]
[1726068179821,33.8806,130.39,130.29,32.46]
[1726068180021,1.3841,130.38,130.27,36.24472225]
[1726068180318,20.28,130.37,130.27,20.28]
[1726068180517,2.7031,130.38,130.33,3.8363]
[1726068180722,2.7031,130.38,130.29,24.16496661]
[1726068180927,3.8355,130.37,130.29,24.16496661]
[1726068181120,2.7031,130.38,130.29,24.16496661]
[1726068181322,1.4206,130.39,130.32,20.28]
[1726068181521,3.76631116,130.42,130.33,20.28]
[1726068181821,24.04631116,130.42,130.36,3.8355]
[1726068182028,24.04631116,130.42,130.32,20.28]
[1726068182326,36.18631116,130.42,130.35,3.8357]
[1726068182525,3.8354,130.37,130.31,32.42]
[1726068182726,36.18631116,130.42,130.33,3.8364]
[1726068182727,32.42,130.4,130.33,3.8364]
[1726068183023,3.8356,130.37,130.33,3.8364]
[1726068183220,3.8356,130.37,130.34,3.8361]
[1726068183623,32.42,130.4,130.29,36.28395027]
[1726068183926,36.18631116,130.42,130.31,32.42]
[1726068185627,36.18631116,130.42,130.36,3.8354]
[1726068185929,36.18631116,130.42,130.31,32.42]
[1726068186130,3.8349,130.39,130.31,32.42]
[1726068186926,36.18631116,130.42,130.31,32.42]
[1726068187431,3.8349,130.39,130.31,32.42]
[1726068188030,36.18631116,130.42,130.34,3.8361]
[1726068188229,32.42,130.4,130.34,3.8361]
[1726068188623,32.42,130.4,130.33,3.8365]
[1726068188825,32.42,130.4,130.29,36.18476189]
[1726068189025,3.8351,130.38,130.35,3.8357]
[1726068189527,3.8355,130.37,130.34,3.8361]
[1726068189730,32.42,130.4,130.3,3.90952344]
[1726068190042,7.60041116,130.42,130.38,3.8349]
[1726068190329,3.76631116,130.42,130.38,3.8349]
[1726068190533,3.76631116,130.42,130.31,32.42]
[1726068190834,3.8348,130.39,130.35,3.8358]
[1726068191323,36.18631116,130.42,130.31,32.42]
[1726068191526,3.8344,130.41,130.31,32.42]
[1726068192333,3.8346,130.4,130.36,3.8354]
[1726068195030,40.02031116,130.42,130.31,32.42]
[1726068195331,36.4502,130.44,130.34,32.42]
[1726068195536,3.76505075,130.43,130.38,3.8349]
[1726068195732,3.8341,130.42,130.34,32.42]
[1726068196328,3.76505075,130.43,130.34,32.42]
[1726068196524,4.0302,130.44,130.34,32.42]
[1726068196731,7.90093609,130.44,130.39,3.8346]
[1726068197129,7.90093609,130.44,130.34,32.42]
[1726068197728,3.8338,130.43,130.34,32.42]
[1726068197925,3.8338,130.43,130.39,3.8346]
[1726068198129,7.90093609,130.44,130.39,3.8346]
[1726068198329,3.8337,130.43,130.39,3.8346]
[1726068198738,3.8337,130.43,130.4,3.8344]
[1726068199333,7.90093609,130.44,130.36,32.42]
[1726068199334,11.73433609,130.44,130.36,32.42]
[1726068199529,7.8636,130.44,130.36,32.42]
[1726068200038,3.8336,130.43,130.4,3.8343]
[1726068200438,2.7112,130.44,130.38,3.835]
[1726068200736,2.7112,130.44,130.36,32.42]
[1726068201135,2.7112,130.44,130.39,3.8347]
[1726068201834,2.7112,130.44,130.36,32.42]
[1726068201835,3.8338,130.43,130.4,3.8345]
[1726068202035,3.8338,130.43,130.36,32.42]
[1726068202228,2.7112,130.44,130.35,20.25]
[1726068202437,3.834,130.42,130.39,3.8346]
[1726068202735,3.834,130.42,130.35,20.25]
[1726068202934,20.25,130.42,130.37,3.8352]
[1726068203339,20.25,130.42,130.31,20.25]
[1726068204133,20.25,130.38,130.29,24.08246394]
[1726068204633,24.16032525,130.38,130.34,3.8361]
[1726068205028,27.99552525,130.38,130.35,3.8359]
[1726068205634,3.8354,130.37,130.34,3.8362]
[1726068206035,3.8354,130.37,130.29,24.08246394]
[1726068206433,27.99562525,130.38,130.29,24.08246394]
[1726068206639,24.16032525,130.38,130.34,3.8361]
[1726068207436,3.8356,130.37,130.34,3.8361]
[1726068207840,24.16032525,130.38,130.33,3.8364]
[1726068208639,3.8357,130.36,130.33,3.8364]
[1726068208831,24.16032525,130.38,130.33,3.8364]
[1726068209341,3.8358,130.36,130.33,3.8364]
[1726068210143,20.25,130.35,130.24,7.6782]
[1726068210334,20.25,130.35,130.25,20.25]
[1726068210841,20.25,130.35,130.2,24.18028087]
[1726068210842,20.25,130.33,130.23,20.25]
[1726068211042,3.8377,130.29,130.26,3.8385]
[1726068211839,7.59247951,130.3,130.27,3.8383]
[1726068212546,3.8375,130.3,130.27,3.8383]
[1726068212837,24.0872,130.31,130.27,3.8383]
[1726068213143,27.96819808,130.31,130.27,3.8383]
[1726068213547,3.8375,130.3,130.27,3.8383]
[1726068213936,20.25,130.31,130.23,20.25]
[1726068214132,20.25,130.33,130.23,20.25]
[1726068214842,3.8372,130.31,130.23,20.25]
[1726068215337,20.25,130.33,130.23,20.25]
[1726068215932,3.8371,130.32,130.23,20.25]
[1726068216543,3.8371,130.32,130.29,3.8377]
[1726068217139,3.8372,130.31,130.28,3.8379]
[1726068217641,20.25,130.33,130.23,20.25]
[1726068218334,24.0868,130.33,130.23,20.25]
[1726068218538,20.25,130.33,130.23,20.25]
[1726068218748,20.25,130.31,130.2,20.25]
[1726068218945,20.25,130.31,130.22,20.25]
[1726068219147,24.12839705,130.31,130.22,20.25]
[1726068219447,27.96569705,130.31,130.27,3.8381]
[1726068219640,27.96569705,130.31,130.22,20.25]
[1726068220247,24.12839705,130.31,130.22,20.25]
[1726068220545,1.4298,130.36,130.28,3.8379]
[1726068220546,20.25,130.33,130.28,3.8379]
[1726068220849,3.8373,130.31,130.28,3.8379]
[1726068222044,20.25,130.33,130.22,20.25]
[1726068222745,20.25,130.31,130.2,20.25]
[1726068222945,1.3541,130.3,130.2,20.25]
[1726068223145,3.8379,130.29,130.2,20.25]
[1726068223547,4.1703,130.3,130.2,20.25]
[1726068223746,3.8381,130.28,130.25,3.8387]
[1726068224249,3.8378,130.29,130.26,3.8385]
[1726068225345,3.8378,130.29,130.2,20.25]
[1726068225346,3.8381,130.28,130.25,3.8388]
[1726068225851,3.8381,130.28,130.2,20.25]
[1726068225852,4.1703,130.3,130.27,3.8381]
[1726068226051,2.7633,130.3,130.22,20.25]
[1726068226544,2.7633,130.3,130.27,3.8381]
[1726068226751,2.7633,130.3,130.22,20.25]
[1726068226946,6.6009,130.3,130.22,20.25]
[1726068227158,6.6009,130.3,130.27,3.8382]
[1726068227947,6.6009,130.3,130.28,3.838]
[1726068228147,2.7633,130.3,130.28,3.838]
[1726068230055,6.6008,130.3,130.27,3.8383]
[1726068230448,2.7633,130.3,130.22,20.25]
[1726068230955,2.7633,130.3,130.26,3.8384]
[1726068231159,3.8379,130.29,130.26,3.8384]
[1726068232454,23.0133,130.3,130.2,20.25]
[1726068232455,3.8381,130.28,130.25,3.8388]
[1726068233249,23.0133,130.3,130.2,20.25]
[1726068233451,20.25,130.28,130.18,24.03301597]
[1726068233956,3.8389,130.25,130.18,24.03301597]
[1726068234459,3.8393,130.24,130.21,3.8399]
[1726068234652,20.25,130.25,130.17,3.93465909]
[1726068234854,20.25,130.25,130.22,3.8396]
[1726068235653,20.25,130.25,130.14,7.6838]
[1726068235654,20.25,130.27,130.14,20.25]
[1726068235960,20.25,130.23,130.14,20.25]
[1726068236350,3.8401,130.21,130.14,20.25]
[1726068236759,25.5207,130.23,130.19,3.8406]
[1726068237058,21.6811,130.23,130.14,20.25]
[1726068237259,20.25,130.22,130.12,20.25]
[1726068237658,3.8404,130.2,130.16,3.8414]
[1726068238354,3.8404,130.2,130.17,3.8413]
[1726068238857,3.8411,130.18,130.1,20.25]
[1726068239065,20.25,130.2,130.1,20.25]
[1726068239764,20.25,130.2,130.17,3.8412]
[1726068239958,20.25,130.2,130.1,20.25]
[1726068240165,20.25,130.22,130.12,20.25]
[1726068240459,20.25,130.22,130.2,3.8404]
[1726068240654,2.7518,130.23,130.2,3.8404]
[1726068241057,2.7518,130.23,130.15,3.87821744]
[1726068241261,2.7518,130.23,130.14,20.25]
[1726068241459,21.5613,130.24,129.8,140.61426418]
[1726068241460,20.25,130.28,130.19,3.8407]